fUSD/lending_fUSD_20250324
["ID","MTS","AMOUNT","RATE_DAILY","PERIOD"]
[356614466,1742824232034,-1652.52120533,0.00011999,2]
[356614467,1742824232043,-1002.7859,0.00011999,2]
[356614469,1742824232053,-1000.0,0.00011999,2]
[356614471,1742824232063,-617.0,0.00012,2]
[356614473,1742824232071,-249.70695212,0.00012,2]
[356614475,1742824232083,-1681.21549141,0.00012,2]
[356614476,1742824232094,-1050.0,0.00012,2]
[356614477,1742824232105,-1577.36276331,0.00012,2]
[356614478,1742824232119,-681.59136796,0.00012,2]
[356614480,1742824237469,-4768.6433041,0.00011905,2]
[356614481,1742824237479,-549.0,0.00012,2]
[356614482,1742824237597,-24721.35648676,0.00012,2]
[356614483,1742824237608,-710505.2980347,0.00012,2]
[356614509,1742824239654,-1688.13250861,0.00012,2]
[356614510,1742824239666,-652.420016,0.00012,2]
[356614511,1742824239680,-1386908.992094,0.00012,2]
[356614512,1742824239689,-151.92668134,0.00012,2]
[356614513,1742824239701,-1233628.32511076,0.00012,2]
[356614514,1742824240000,-586.57395298,0.00012,2]
[356614515,1742824240118,-4859.52345882,0.00012,2]
[356614536,1742824311524,20032.04526203,0.00031807,30]
[356614542,1742824342337,-153.34869192,0.00011653,2]
[356614543,1742824383919,-332.90552008,0.00011301,2]
[356614545,1742824549704,-215.53962064,0.00011,2]
[356614548,1742825050774,-183.051,0.00010935,2]
[356614557,1742825330102,160.27,0.000318,30]
[356614558,1742825339120,-181.19713606,0.00010886,2]
[356614559,1742825366604,3127.07,0.00010841,2]
[356614561,1742825420751,1000.0,0.00010841,2]
[356614562,1742825423292,1149.92,0.00010841,2]
[356614574,1742825431738,-621.30286394,0.00010886,2]
[356614575,1742825431749,-150.0,0.0001091,2]
[356614576,1742825431758,-16.949,0.00010935,2]
[356614577,1742825431768,-34.46037936,0.00011,2]
[356614578,1742825431777,-527.17,0.00011027,2]
[356614579,1742825431787,-500.0,0.000111,2]
[356614580,1742825431797,-196.78,0.00011125,2]
[356614581,1742825431806,-168.00900634,0.00011127,2]
[356614582,1742825431818,-81.99099366,0.00011127,2]
[356614583,1742825431827,-150.06,0.00011146,2]
[356614584,1742825431835,-938.1291255,0.00011172,2]
[356614585,1742825431847,-6826.9908745,0.00011172,2]
[356614586,1742825431857,-1728.13,0.00011188,2]
[356614587,1742825431867,-150.0,0.00011189,2]
[356614588,1742825431881,-67.7791255,0.00011281,2]
[356614589,1742825431896,-5615.9208745,0.00011281,2]
[356614590,1742825431905,-19999.99,0.00011281,2]
[356614591,1742825431916,-2428.33182169,0.00011281,2]
[356614592,1742825431931,-368.72817831,0.00011281,2]
[356614593,1742825431940,-599.69447992,0.00011301,2]
[356614594,1742825431949,-444.67548341,0.00011333,2]
[356614595,1742825431959,-184.49,0.00011429,2]
[356614596,1742825431967,-150.06,0.00011766,2]
[356614597,1742825431977,-434.73457709,0.00011771,2]
[356614598,1742825431986,-187.73799072,0.00011905,2]
[356614599,1742825431996,-183.97052293,0.00011905,2]
[356614600,1742825432005,-430.6066311,0.00011905,2]
[356614601,1742825432015,-3179.09553606,0.00011905,2]
[356614602,1742825432024,-280.89135502,0.00011905,2]
[356614603,1742825432033,-590.50766176,0.00011973,2]
[356614604,1742825432043,-150.0,0.00011974,2]
[356614605,1742825432053,-2907.8906872,0.00011997,2]
[356614606,1742825432062,-150.0,0.00011999,2]
[356614607,1742825432072,-5345.74674476,0.00012,2]
[356614608,1742825432084,-463.5345,0.00012,2]
[356614609,1742825432099,-3778.79528754,0.00012,2]
[356614610,1742825432111,-415.87469936,0.00012,2]
[356614614,1742825437571,-153.34869192,0.00011025,2]
[356614615,1742825437580,-673.25438881,0.00012,2]
[356614616,1742825437647,-289.18728201,0.00012,2]
[356614617,1742825437658,-330.3001521,0.00012,2]
[356614619,1742825437760,-282434.76577077,0.00012,2]
[356614620,1742825437771,-310.90780265,0.00012,2]
[356614621,1742825437829,-440.495,0.00012,2]
[356614622,1742825437840,-281.78311804,0.00012,2]
[356614623,1742825437851,-10187.30277529,0.00012,2]
[356614624,1742825437863,-2311.26752985,0.00012,2]
[356614625,1742825437874,-12040.40507918,0.00012,2]
[356614696,1742825439943,-0.00198738,0.000119,2]
[356614721,1742825443773,-375.87021262,0.000119,2]
[356614722,1742825443783,-87474.12978739,0.00012,2]
[356614735,1742825445340,-518410.5822,0.00012,2]
[356614736,1742825445352,-263.227488,0.00012,2]
[356614737,1742825445384,-2620689.2438861,0.00012,2]
[356614738,1742825445397,-759.71243021,0.00012,2]
[356614739,1742825445408,-255.57505125,0.00012,2]
[356614744,1742825445834,-1885.23941342,0.00012,2]
[356614745,1742825445849,-2772.5524997,0.00012,2]
[356614746,1742825445861,-5196.27571829,0.00012,2]
[356614747,1742825446001,-46054.66206377,0.00012,2]
[356614826,1742825473038,727.99694784,0.00010802,2]
[356614827,1742825473061,1272.00305216,0.00010802,2]
[356614829,1742825487007,902.18,8.924e-05,2]
[356614836,1742825527443,2040.0,0.00010802,2]
[356614847,1742826143030,258.01756868,0.0003177,120]
[356614855,1742826314885,115865.92331826,0.0003177,30]
[356614856,1742826336933,3813.47940636,8e-05,2]
[356614859,1742826418226,-250.0,0.00011,2]
[356614860,1742826418248,-150.0,0.00011094,2]
[356614861,1742826418271,-902.18,0.00011187,2]
[356614862,1742826418292,-150.0,0.000115,2]
[356614863,1742826418314,-496.22835609,0.00011577,2]
[356614864,1742826418334,-298.0,0.00011836,2]
[356614865,1742826418355,-151.7112,0.000119,2]
[356614866,1742826418376,-851.78281129,0.000119,2]
[356614867,1742826418397,-1097.04245783,0.00011905,2]
[356614870,1742826475066,1972.33754148,0.0001,2]
[356614871,1742826475087,10000.0,0.0001,2]
[356614872,1742826475108,5879.59875526,0.0001,2]
[356614873,1742826478645,4120.40124474,0.0001,2]
[356614874,1742826478671,10000.0,0.0001,2]
[356614875,1742826478697,10000.0,0.0001,2]
[356614876,1742826478724,10000.0,0.0001,2]
[356614877,1742826478749,10000.0,0.0001,2]
[356614878,1742826478774,10000.0,0.0001,2]
[356614879,1742826478801,10000.0,0.0001,2]
[356614880,1742826478824,9361.62796901,0.0001,2]
[356614887,1742826497581,-229.87709353,0.00010914,2]
[356614891,1742826529820,500.0,0.0003177,30]
[356614916,1742826632003,-582.08290647,0.00010914,2]
[356614917,1742826632013,-187.26090336,0.000119,2]
[356614918,1742826632023,-327.44274822,0.000119,2]
[356614919,1742826632033,-182.94809828,0.000119,2]
[356614920,1742826632042,-188.34540049,0.000119,2]
[356614921,1742826632052,-1753.71620477,0.000119,2]
[356614922,1742826632062,-150.0,0.00011908,2]
[356614923,1742826632072,-1348.10649507,0.0001191,2]
[356614924,1742826632082,-4212.5643089,0.00011997,2]
[356614925,1742826632091,-372.0136648,0.00011997,2]
[356614926,1742826632101,-150.0,0.00011999,2]
[356614927,1742826632111,-42867.22722707,0.00012,2]
[356614928,1742826632216,-118036.72725206,0.00012,2]
[356614929,1742826632231,-362667.42734321,0.00012,2]
[356614930,1742826632317,-269.51575281,0.00012,2]
[356614965,1742826637876,-492.95,0.00012,2]
[356614966,1742826637894,-38160.23387849,0.00012,2]
[356614967,1742826637911,-542.25683813,0.00012,2]
[356614968,1742826637927,-443.3146604,0.00012,2]
[356614969,1742826637945,-1675176.69341251,0.00012,2]
[356614970,1742826638035,-7051.93837733,0.00012,2]
[356614971,1742826638047,-475.85322482,0.00012,2]
[356615032,1742826640029,-26585.41919999,0.00012,2]
[356615051,1742826640214,-2621592.0448861,0.00012,2]
[356615059,1742826640480,-19900.51520243,0.00012,2]
[356615060,1742826640496,-2703.83711294,0.00012,2]
[356615062,1742826640513,-838.835,0.00012,2]
[356615064,1742826640528,-3979.45780675,0.00012,2]
[356615067,1742826640544,-13309.54407334,0.00012,2]
[356615122,1742826644025,-4481.13889737,0.00012,2]
[356615134,1742826645431,-3678.1311428,0.00012,2]
[356615135,1742826645532,-9041.22094381,0.00012,2]
[356615151,1742826645887,-5186.52001,0.00012,2]
[356615152,1742826645911,-816.2895256,0.00012,2]
[356615153,1742826645923,-42455.20704112,0.00012,2]
[356615154,1742826645934,-33577.59999989,0.00012,2]
[356615155,1742826646136,-575.85527999,0.00012,2]
[356615156,1742826646229,-9619.81848647,0.00012,2]
[356615157,1742826646251,-3398.33500104,0.00012,2]
[356615164,1742826668503,501.0,0.0003177,30]
[356615166,1742826676797,500.0,0.0003177,60]
[356615167,1742826686594,500.0,0.0003177,90]
[356615168,1742826696123,500.13,0.0003177,120]
[356615169,1742826715277,500.0,0.0003177,120]
[356615239,1742827832098,-391.10465378,0.00011282,2]
[356615240,1742827832111,-402.65534622,0.00011282,2]
[356615241,1742827832120,-17.34465278,0.00011498,2]
[356615242,1742827832132,-195.17759922,0.00011498,2]
[356615243,1742827832142,-434.73457709,0.00011668,2]
[356615244,1742827832151,-414.92853135,0.000119,2]
[356615245,1742827832167,-1308.27316865,0.000119,2]
[356615246,1742827832176,-759.61871161,0.000119,2]
[356615247,1742827832186,-150.0,0.00011999,2]
[356615248,1742827832196,-5129.58728943,0.00012,2]
[356615249,1742827832207,-3466.57410046,0.00012,2]
[356615250,1742827832300,-2339.181716,0.00012,2]
[356615251,1742827832312,-2989.57778966,0.00012,2]
[356615252,1742827832438,-17853.00072888,0.00012,2]
[356615253,1742827832450,-8999.99925257,0.00012,2]
[356615254,1742827832462,-3984.49288303,0.00012,2]
[356615256,1742827837987,-397.59031232,0.00012,2]
[356615257,1742827837999,-424.50398209,0.00012,2]
[356615258,1742827838028,-1087.4999985,0.00012,2]
[356615259,1742827838248,-939.85,0.00012,2]
[356615260,1742827838264,-2151.36072866,0.00012,2]
[356615264,1742827840242,-1659.05564763,0.00012,2]
[356615265,1742827840404,-1728.31156128,0.00012,2]
[356615266,1742827840416,-550.09746698,0.00012,2]
[356615267,1742827840428,-1285.09837437,0.00012,2]
[356615268,1742827840586,-4274.18031,0.00012,2]
[356615269,1742827840635,-1067.74915415,0.00012,2]
[356615360,1742827844658,-9411.84698582,0.00012,2]
[356615362,1742827844669,-1382.99999,0.00012,2]
[356615382,1742827844842,-385.70741305,0.00012,2]
[356615384,1742827844853,-406.84861253,0.00012,2]
[356615406,1742827846075,-4951.82386287,0.00012,2]
[356615407,1742827846089,-647.12299997,0.00012,2]
[356615408,1742827846209,-1287.65059539,0.00012,2]
[356615409,1742827846221,-40466.99869494,0.00012,2]
[356615410,1742827846232,-364.50700524,0.00012,2]
[356615425,1742828172298,-153.34869192,0.00011,2]
[356615427,1742828557803,719321.59,0.00031751,30]
[356615428,1742828580166,-332.90552008,0.0001092,2]
[356615429,1742828762389,350.0,0.0001096,3]
[356615430,1742828762468,350.0,0.00011466,3]
[356615431,1742828859367,2999.99,0.00031716,30]
[356615432,1742828882513,350.0,0.0001096,3]
[356615434,1742828957574,-505.15447992,0.0001092,2]
[356615435,1742828957597,-150.0,0.0001096,2]
[356615436,1742828957620,-96.65130808,0.00011,2]
[356615437,1742828957642,-248.194212,0.00011747,2]
[356615438,1742828966882,-186.54036509,0.00011747,2]
[356615439,1742828966905,-300.0,0.00011899,2]
[356615440,1742828966927,-150.0,0.00011899,2]
[356615441,1742828966949,-363.45963491,0.00011899,2]
[356615442,1742828976984,-27.35437645,0.00011899,2]
[356615443,1742828977009,-500.0,0.000119,2]
[356615444,1742828977033,-472.64562355,0.000119,2]
[356615445,1742828986033,-500.0,0.000119,2]
[356615446,1742828994573,-500.0,0.000119,2]
[356615447,1742829002315,-500.0,0.000119,2]
[356615448,1742829019531,-62.47281199,0.000119,2]
[356615449,1742829019556,-137.52718801,0.000119,2]
[356615450,1742829030677,-150.0,0.000119,2]
[356615479,1742829032320,-380.08567122,0.000119,2]
[356615481,1742829032331,-532.16247445,0.000119,2]
[356615483,1742829032341,-17598.6,0.000119,2]
[356615487,1742829032372,-466.16634134,0.000119,2]
[356615493,1742829032424,-46897.08362498,0.000119,2]
[356615495,1742829032434,-3737.92981283,0.000119,2]
[356615525,1742829038472,-7726.47678717,0.000119,2]
[356615526,1742829038481,-195.29692877,0.000119,2]
[356615527,1742829038490,-310.0113874,0.00011996,2]
[356615528,1742829038500,-2902.2000744,0.00011996,2]
[356615529,1742829038509,-2763.4599474,0.00011996,2]
[356615530,1742829038519,-1782.4111777,0.00011996,2]
[356615531,1742829038528,-87536.36495009,0.00012,2]
[356615553,1742829040417,-301.00040528,0.00012,2]
[356615554,1742829040484,-880.44,0.00012,2]
[356615555,1742829040496,-295.2118236,0.00012,2]
[356615556,1742829040543,-1736.64885013,0.00012,2]
[356615557,1742829040854,-27039.94753,0.00012,2]
[356615558,1742829040866,-947.66428876,0.00012,2]
[356615559,1742829040878,-3798.43220689,0.00012,2]
[356615565,1742829041126,-15928.83557271,0.00012,2]
[356615567,1742829041140,-168501.96000062,0.00012,2]
[356615798,1742829043350,-8758.6013179,0.00012,2]
[356616055,1742829046573,-957.90143732,0.00012,2]
[356616065,1742829597444,484.47016021,0.00031713,30]
[356616067,1742829697722,865.81,0.00010444,2]
[356616069,1742830042882,700.0,0.000116,4]
[356616070,1742830044993,1400.0,0.000117,4]
[356616071,1742830047094,2100.0,0.000118,4]
[356616072,1742830049202,2900.0,0.000119,4]
[356616074,1742830080922,98187.1394379,0.0001,2]
[356616075,1742830113251,4023.15,0.00031713,30]
[356616086,1742830186680,150.0,0.00011279,7]
[356616093,1742830232638,-250.0,0.00011,2]
[356616094,1742830232648,-13.92712011,0.00011278,2]
[356616095,1742830232718,-286.07287989,0.00011278,2]
[356616096,1742830232728,-27300.23,0.00011279,2]
[356616097,1742830232737,-480.95833527,0.00011479,2]
[356616098,1742830232747,-434.73457709,0.00011579,2]
[356616099,1742830232756,-253.18046935,0.0001173,2]
[356616100,1742830232766,-282.28129383,0.00011799,2]
[356616101,1742830232776,-871.12855316,0.000118,2]
[356616102,1742830232786,-150.0,0.00011899,2]
[356616103,1742830232795,-3758.4842526,0.000119,2]
[356616116,1742830238451,-648.9334858,0.000119,2]
[356616117,1742830238463,-495.52,0.000119,2]
[356616118,1742830238482,-4506.87,0.000119,2]
[356616119,1742830238597,-353.0597992,0.000119,2]
[356616122,1742830240657,-9861.7114624,0.000119,2]
[356616123,1742830240667,-368.7964,0.000119,2]
[356616124,1742830240679,-1000.0,0.000119,2]
[356616125,1742830240689,-871.12855317,0.000119,2]
[356616126,1742830240699,-195.29692875,0.00011904,2]
[356616127,1742830240708,-4316.0610864,0.00011912,2]
[356616128,1742830240718,-160.63489148,0.00011973,2]
[356616129,1742830240728,-3226.3706778,0.00011994,2]
[356616130,1742830240740,-273.50632869,0.00011994,2]
[356616131,1742830240759,-940.7998288,0.00011994,2]
[356616169,1742830949343,822.51,0.00010162,2]
[356616171,1742831128770,536.124,0.00031733,120]
[356616172,1742831243792,300.0,0.000116,4]
[356616173,1742831245900,700.0,0.000117,4]
[356616174,1742831247995,1100.0,0.000118,4]
[356616175,1742831250099,1500.0,0.000119,4]
[356616179,1742831431899,-262.31631278,0.00011524,2]
[356616180,1742831431909,-204.75095722,0.0001188,2]
[356616181,1742831431920,-430.25086577,0.0001188,2]
[356616185,1742831437664,-781.5493734,0.0001188,2]
[356616186,1742831437771,-1961.65851642,0.0001188,2]
[356616187,1742831437925,-1995.70000001,0.0001188,2]
[356616188,1742831437941,-335.4679653,0.0001188,2]
[356616189,1742831437959,-1272.01274265,0.0001188,2]
[356616190,1742831437975,-511.64502855,0.0001188,2]
[356616247,1742831439850,-14513.12597514,0.0001188,2]
[356616249,1742831439862,-150.0,0.00011899,2]
[356616251,1742831439875,-5881.0674,0.000119,2]
[356616252,1742831439888,-323.89737522,0.000119,2]
[356616253,1742831439900,-1061.1519,0.000119,2]
[356616254,1742831439913,-2001.11745249,0.000119,2]
[356616255,1742831439925,-2283.2874,0.000119,2]
[356616256,1742831439937,-3884.45497776,0.000119,2]
[356616257,1742831439950,-26246.6455,0.000119,2]
[356616258,1742831439962,-608.5299,0.000119,2]
[356616259,1742831439974,-195.29692875,0.000119,2]
[356616260,1742831439987,-150.0,0.00011973,2]
[356616261,1742831440000,-155.12449461,0.00011973,2]
[356616262,1742831440012,-3579.46,0.00011987,2]
[356616263,1742831440024,-6827.01966523,0.0001199,2]
[356616264,1742831440036,-5057.9467636,0.00011996,2]
[356616265,1742831440048,-1044.3116165,0.00011996,2]
[356616266,1742831440061,-268.0,0.00011999,2]
[356616267,1742831440073,-815.0,0.00012,2]
[356616268,1742831440085,-151.92668134,0.00012,2]
[356616269,1742831440098,-2546394.68085546,0.00012,2]
[356616270,1742831440127,-16808.10000001,0.00012,2]
[356616271,1742831440143,-1466.43173063,0.00012,2]
[356616272,1742831440158,-80936.43102366,0.00012,2]
[356616273,1742831440173,-414.54,0.00012,2]
[356616274,1742831440188,-771.144,0.00012,2]
[356616285,1742831442761,-374.43122639,0.00012,2]
[356616286,1742831442773,-2534.52691335,0.00012,2]
[356616287,1742831442784,-12982.83995627,0.00012,2]
[356616288,1742831442797,-4815.8139155,0.00012,2]
[356616289,1742831442831,-3525.24219867,0.00012,2]
[356616290,1742831442907,-1821.82014999,0.00012,2]
[356616291,1742831442919,-873.04153788,0.00012,2]
[356616292,1742831442930,-276.07196702,0.00012,2]
[356616293,1742831443113,-4727.92676812,0.00012,2]
[356616331,1742831445598,-42756.46497937,0.00012,2]
[356616332,1742831445612,-847.92324584,0.00012,2]
[356616333,1742831445624,-918.650575,0.00012,2]
[356616334,1742831445701,-2310.1151523,0.00012,2]
[356616335,1742831445713,-1371.9392316,0.00012,2]
[356616340,1742831984981,781.38,9.18e-05,2]
[356616342,1742832631710,-150.0,0.00010981,2]
[356616343,1742832631721,-249.42903,0.00011,2]
[356616344,1742832631733,-0.57097,0.00011,2]
[356616345,1742832631743,-491.39,0.00011056,2]
[356616346,1742832631753,-133.23840617,0.00011058,2]
[356616347,1742832631879,-96.63159383,0.00011058,2]
[356616348,1742832631891,-300.0,0.00011089,2]
[356616349,1742832631900,-152.44535511,0.0001109,2]
[356616350,1742832631937,-442.5,0.0001109,2]
[356616351,1742832632016,-255.49654048,0.0001109,2]
[356616352,1742832632028,-12331.46810441,0.0001109,2]
[356616353,1742832632038,-578.1,0.00011095,2]
[356616354,1742832632048,-528.87,0.00011098,2]
[356616355,1742832632058,-1646.66,0.00011104,2]
[356616356,1742832632068,-1000.0,0.00011114,2]
[356616357,1742832632078,-688.16,0.00011121,2]
[356616358,1742832632088,-781.38,0.00011444,2]
[356616359,1742832632098,-184.49,0.00011562,2]
[356616360,1742832632108,-262.31631278,0.00011629,2]
[356616362,1742832632118,-3226.4858,0.00011899,2]
[356616364,1742832632128,-2023.36166793,0.00011899,2]
[356616365,1742832632138,-6647.5422,0.000119,2]
[356616368,1742832632148,-279.66,0.00011905,2]
[356616369,1742832632158,-1181.76,0.00011909,2]
[356616372,1742832632168,-1765.9,0.00011912,2]
[356616374,1742832632180,-756.59145256,0.00011996,2]
[356616376,1742832632197,-891.9251299,0.00011997,2]
[356616377,1742832632206,-4239.65398826,0.00011997,2]
[356616389,1742832637600,-80.23458974,0.00011997,2]
[356616390,1742832637610,-150.0,0.00011998,2]
[356616391,1742832637619,-2486.43063654,0.00011999,2]
[356616392,1742832637764,-1042.82955653,0.00011999,2]
[356616393,1742832637776,-18380.75,0.00011999,2]
[356616394,1742832637823,-308.90038339,0.00011999,2]
[356616395,1742832637834,-53762.61914383,0.00011999,2]
[356616398,1742832639890,-53047.85021591,0.00011999,2]
[356616399,1742832639949,-4173.2,0.00011999,2]
[356616400,1742832639961,-49575.1484685,0.00011999,2]
[356616401,1742832640061,-67222.2715953,0.00011999,2]
[356616402,1742832640072,-200565.63155296,0.00012,2]
[356616403,1742832640120,-1907.61631091,0.00012,2]
[356616404,1742832640133,-4287.36,0.00012,2]
[356616405,1742832640144,-3070.5981233,0.00012,2]
[356616406,1742832640158,-4277.0,0.00012,2]
[356616420,1742832644430,-6902.439984,0.00012,2]
[356616423,1742832645800,-77031.93148529,0.00012,2]
[356616449,1742833832015,-250.0,0.00011,2]
[356616450,1742833832025,-506.43989339,0.00011048,2]
[356616451,1742833832070,-282.91010661,0.00011048,2]
[356616452,1742833832080,-665.64348248,0.0001173,2]
[356616453,1742833832090,-277.6263216,0.00011912,2]
[356616454,1742833832100,-1314.72273948,0.00011912,2]
[356616469,1742833837832,-418.425,0.00011912,2]
[356616470,1742833837888,-87.87776172,0.00011912,2]
[356616471,1742833837898,-3496.00947993,0.00011912,2]
[356616472,1742833837908,-3501.0018588,0.00011996,2]
[356616473,1742833837917,-150.0,0.00011999,2]
[356616474,1742833837927,-296.18469625,0.00012,2]
[356616475,1742833837936,-292.69789234,0.00012,2]
[356616476,1742833837946,-150.0,0.00012,2]
[356616477,1742833837955,-150.0,0.00012,2]
[356616478,1742833837965,-805.46349385,0.00012,2]
[356616479,1742833837974,-1589.29101464,0.00012,2]
[356616480,1742833837985,-500.0,0.00012,2]
[356616481,1742833837994,-500.0,0.00012,2]
[356616482,1742833838003,-533.0,0.00012,2]
[356616483,1742833838013,-500.0,0.00012,2]
[356616484,1742833838022,-500.0,0.00012,2]
[356616485,1742833838032,-500.0,0.00012,2]
[356616486,1742833838041,-500.0,0.00012,2]
[356616487,1742833838050,-500.0,0.00012,2]
[356616488,1742833838060,-500.0,0.00012,2]
[356616489,1742833838069,-500.0,0.00012,2]
[356616490,1742833838078,-500.0,0.00012,2]
[356616491,1742833838088,-500.0,0.00012,2]
[356616492,1742833838098,-500.0,0.00012,2]
[356616493,1742833838107,-500.0,0.00012,2]
[356616494,1742833838117,-500.0,0.00012,2]
[356616495,1742833838127,-500.0,0.00012,2]
[356616496,1742833838136,-500.0,0.00012,2]
[356616497,1742833838146,-500.0,0.00012,2]
[356616498,1742833838155,-500.0,0.00012,2]
[356616500,1742833838165,-500.0,0.00012,2]
[356616502,1742833838176,-500.0,0.00012,2]
[356616504,1742833838185,-500.0,0.00012,2]
[356616505,1742833838195,-500.0,0.00012,2]
[356616507,1742833838204,-500.0,0.00012,2]
[356616509,1742833838214,-500.0,0.00012,2]
[356616511,1742833838223,-500.0,0.00012,2]
[356616512,1742833838233,-500.0,0.00012,2]
[356616513,1742833838243,-500.0,0.00012,2]
[356616514,1742833838252,-500.0,0.00012,2]
[356616515,1742833838263,-500.0,0.00012,2]
[356616516,1742833838272,-500.0,0.00012,2]
[356616517,1742833838282,-500.0,0.00012,2]
[356616518,1742833838291,-500.0,0.00012,2]
[356616519,1742833838302,-500.0,0.00012,2]
[356616520,1742833838312,-500.0,0.00012,2]
[356616521,1742833838321,-500.0,0.00012,2]
[356616522,1742833838331,-500.0,0.00012,2]
[356616523,1742833838340,-500.0,0.00012,2]
[356616524,1742833838349,-500.0,0.00012,2]
[356616525,1742833838359,-500.0,0.00012,2]
[356616526,1742833838368,-500.0,0.00012,2]
[356616527,1742833838378,-551.0,0.00012,2]
[356616528,1742833838387,-20388.27600141,0.00012,2]
[356616529,1742833838399,-316.01150826,0.00012,2]
[356616530,1742833838410,-697.81405984,0.00012,2]
[356616531,1742833838446,-31207.5,0.00012,2]
[356616532,1742833838457,-704.85019294,0.00012,2]
[356616533,1742833838480,-1177.48358539,0.00012,2]
[356616534,1742833838491,-44017.60000002,0.00012,2]
[356616535,1742833838502,-4232.84058231,0.00012,2]
[356616538,1742833840279,-12252.1478167,0.00012,2]
[356616539,1742833840296,-3330.10432867,0.00012,2]
[356616559,1742833843022,-4405.98765739,0.00012,2]
[356616561,1742833844479,-841.0,0.00012,2]
[356616562,1742833844491,-11520.4715,0.00012,2]
[356616563,1742833844506,-2423.99537004,0.00012,2]
[356616564,1742833844522,-683.20167865,0.00012,2]
[356616570,1742833846164,-408.9622227,0.00011996,2]
[356616571,1742833846175,-228.63464642,0.00012,2]
[356616572,1742833846218,-1040.54998842,0.00012,2]
[356616594,1742833922483,400.0,0.000116,4]
[356616595,1742833924479,900.0,0.000117,4]
[356616596,1742833926581,1300.0,0.000118,4]
[356616597,1742833928688,1800.0,0.000119,4]
[356616601,1742834420142,749.88,0.0001045,2]
[356616602,1742834703132,2620.0,0.00010582,2]
[356616603,1742834869271,249.07410897,0.00010529,2]
[356616604,1742835003090,2000.00722646,0.00010582,2]
[356616612,1742835032094,-157.06257029,0.000118,2]
[356616613,1742835032103,-715.25742971,0.000119,2]
[356616614,1742835032200,-196.99077029,0.000119,2]
[356616615,1742835032209,-3146.408532,0.000119,2]
[356616616,1742835032218,-312.564,0.000119,2]
[356616617,1742835032227,-839.16283771,0.000119,2]
[356616618,1742835032238,-799.76011337,0.000119,2]
[356616619,1742835032248,-62.06802719,0.000119,2]
[356616620,1742835032259,-175.89739135,0.000119,2]
[356616621,1742835032268,-150.0,0.00011936,2]
[356616622,1742835032278,-150.0,0.00011973,2]
[356616623,1742835032286,-70.81092356,0.0001199,2]
[356616624,1742835032359,-281.29530193,0.0001199,2]
[356616625,1742835032371,-468.10841811,0.0001199,2]
[356616626,1742835032380,-285.1829899,0.00011996,2]
[356616627,1742835032389,-2843.2127339,0.00011996,2]
[356616628,1742835032399,-150.0,0.00011999,2]
[356616629,1742835032409,-733.0,0.00012,2]
[356616630,1742835032418,-4197.78240707,0.00012,2]
[356616631,1742835032433,-10794.71517075,0.00012,2]
[356616632,1742835032444,-404.66014101,0.00012,2]
[356616633,1742835032455,-613.92894622,0.00012,2]
[356616634,1742835032466,-1995.83,0.00012,2]
[356616635,1742835032477,-373.74110185,0.00012,2]
[356616638,1742835037998,-33512.38730391,0.00012,2]
[356616639,1742835038010,-2403.78704119,0.00012,2]
[356616640,1742835038053,-1268.98,0.00012,2]
[356616641,1742835038065,-516.9860129,0.00012,2]
[356616642,1742835038077,-13851.71845767,0.00012,2]
[356616672,1742835041651,-280.86104038,0.00012,2]
[356616673,1742835041663,-273.50632869,0.00012,2]
[356616684,1742835046295,-106.63263093,0.00012,2]